{"text_format":"2","workbook":"xlsx","n_sheets":1,"sheets":["Лист1"],"not_rendered":{"charts":0,"images":0,"macros":0,"external_links":0,"defined_names":0,"comments":0,"pivot_tables":0},"unopened":[],"bounds":{"document_bytes":16777216,"sheet_cells":100000,"run_cost":"one","rows_first":2000,"rows_last":500,"rows_between":2000,"halvings":0,"cell_chars":16384,"cell_head_chars":4096},"cells_cut":0,"cells_raw":0,"read":"whole","date_system":"1900"}

{"sheet":"Лист1","index":0,"n_rows":39,"n_cols":30,"rows_kept":39,"cut":false,"hidden":false,"merged":[[1,1,1,7],[2,1,2,4],[6,20,6,22],[5,4,7,4],[3,1,3,4],[5,5,5,16],[5,1,7,1],[6,23,6,25],[6,17,6,19],[5,17,5,28],[5,2,7,2],[6,8,6,13],[6,14,6,16],[5,3,7,3],[6,26,6,28]]}
[null,null,null,"Отправить данные в минэкономики"]
[null,"Выполнение проектов/мероприятий программы развития производительных сил ","Выполнение проектов/мероприятий программы развития производительных сил ","Выполнение проектов/мероприятий программы развития производительных сил ","Выполнение проектов/мероприятий программы развития производительных сил ","Выполнение проектов/мероприятий программы развития производительных сил ","Выполнение проектов/мероприятий программы развития производительных сил ","Выполнение проектов/мероприятий программы развития производительных сил "]
[null,"Тонкинский район","Тонкинский район","Тонкинский район","Тонкинский район"]
[null,"I полугодие 2015","I полугодие 2015","I полугодие 2015","I полугодие 2015"]
[]
[null,"№","Наименование предприятия/хозяйствующего субъекта (с указанием типа - крупное, среднее, малое, ИП)/наименование поселения","Наименование проекта/мероприятия","Сроки реализации","Объем финансирования,  млн. руб.","Объем финансирования,  млн. руб.","Объем финансирования,  млн. руб.","Объем финансирования,  млн. руб.","Объем финансирования,  млн. руб.","Объем финансирования,  млн. руб.","Объем финансирования,  млн. руб.","Объем финансирования,  млн. руб.","Объем финансирования,  млн. руб.","Объем финансирования,  млн. руб.","Объем финансирования,  млн. руб.","Объем финансирования,  млн. руб.","Эффект от реализации проектов /мероприятий","Эффект от реализации проектов /мероприятий","Эффект от реализации проектов /мероприятий","Эффект от реализации проектов /мероприятий","Эффект от реализации проектов /мероприятий","Эффект от реализации проектов /мероприятий","Эффект от реализации проектов /мероприятий","Эффект от реализации проектов /мероприятий","Эффект от реализации проектов /мероприятий","Эффект от реализации проектов /мероприятий","Эффект от реализации проектов /мероприятий","Эффект от реализации проектов /мероприятий","Дополнительная информация о проекте/мероприятии (с указанием причин невыполнения)"]
[null,"№","Наименование предприятия/хозяйствующего субъекта (с указанием типа - крупное, среднее, малое, ИП)/наименование поселения","Наименование проекта/мероприятия","Сроки реализации","Всего, в т.ч.","Всего, в т.ч.","Всего, в т.ч.","Областной бюджет","Областной бюджет","Областной бюджет","Областной бюджет","Областной бюджет","Областной бюджет","Частные инвестиции (собственные и привлеченные средства)","Частные инвестиции (собственные и привлеченные средства)","Частные инвестиции (собственные и привлеченные средства)","Объем отгруженной продукции (услуг), млн.руб.","Объем отгруженной продукции (услуг), млн.руб.","Объем отгруженной продукции (услуг), млн.руб.","Объем оборота розничной торговли и общественного питания, млн. руб.","Объем оборота розничной торговли и общественного питания, млн. руб.","Объем оборота розничной торговли и общественного питания, млн. руб.","Налоговые поступления в консолидированный бюджет, млн.руб.","Налоговые поступления в консолидированный бюджет, млн.руб.","Налоговые поступления в консолидированный бюджет, млн.руб.","Создано рабочих мест, ед.","Создано рабочих мест, ед.","Создано рабочих мест, ед.","Дополнительная информация о проекте/мероприятии (с указанием причин невыполнения)"]
[null,"№","Наименование предприятия/хозяйствующего субъекта (с указанием типа - крупное, среднее, малое, ИП)/наименование поселения","Наименование проекта/мероприятия","Сроки реализации","План","Освоено (кассовые расходы) в рамках ПРПС","% освоения средств от плана","План","Профинансировано в рамках ПРПС","Освоено (кассовые расходы) в рамках ПРПС","% финансирования от плана","% освоения средств от объема финансирования","% освоения средств от плана","План","Факт","% от плана","План","Факт","% от плана","План","Факт","% от плана","План","Факт","% от плана","План","Факт","% от плана","Дополнительная информация о проекте/мероприятии (с указанием причин невыполнения)"]
[null,"9.150","МУП \"Тонкинские теплосети\"  / Малое / Тонкино","9.150 Проект по использованию отходов деревообработки для выработки теплоэнергии","2015 - 2017",0.9,null,0,{"$nulls":6},0.9,null,0,40,27.39,0,null,null,null,6,4.05,0,6,0,0]
[null,"9.151","ИП Голубев О.Е.  / ИП / ","9.151 Творческая мастерская \"Свечевар\"","2015 - 2017",0.1,null,0,{"$nulls":6},0.1,0.1,0,0.9,0.5,0,null,null,null,0.2,0.1,0,2,2,0]
[null,"3.162","ООО \"Фармстронг\" / Малое / Тонкино","3.162 Создание строительного предприятия","2015 - 2017"]
[null,"3.163","ООО «Кварц» / Малое / ","3.163  Создание строительного предприятия","2015 - 2017",3,null,0,{"$nulls":6},3,3,0,3,null,0,null,null,null,0.2,null,0,5,5,0]
[null,"2.484.","ОАО \"Молоко\"  / Малое / Тонкино","2.484. Создание предприятия по розливу питьевой воды","2015 - 2017"]
[null,"2.485.","ООО \"ТД \"Агрофирма \"Нива\" / Малое / Тонкино","2.485. Цех по первичной переработке мяса и молока","2015 - 2017",{"$nulls":12},1.8,1.65,0,null,null,null,0.27,0.2,0]
[null,"1.904","ООО \"Тонкино-лес\"  / Малое / Тонкино","1.904 Реконструкция действующего производства","2015 - 2017",{"$nulls":12},8,6.9,0,null,null,null,1.68,1.43,0,10,10,0]
[null,"1.905","ООО \"Лесное\" / Малое / Тонкино","1.905 Реконструкция действующего производства","2015 - 2017",6,null,0,{"$nulls":6},6,3.5,0,11,5.6,0,null,null,null,2.31,1.1599999999999999,0]
[null,"1.906","ООО \"Надежда\" / Малое / Тонкино","1.906 Модернизация цеха по деревообработке  ","2015 - 2017",{"$nulls":12},3,1.5,0,null,null,null,0.63,0.32,0]
[null,"1.907","ИП  Аревшатян А.А. / ИП / ","1.907  Строительство пекарни","2015 - 2017",0.85,null,0,{"$nulls":6},0.85,null,0]
[null,"1.908","ООО \"Теремъ\" / Малое / Тонкино","1.908 Создание предприятия по производству клееного бруса","2015 - 2017"]
[null,"1.909","ИП Тимачев В.  / ИП / Тонкино","1.909 Создание предприятия по производству искусственного камня","2015 - 2017",{"$nulls":12},1.3,0.7,0,null,null,null,0.27,0.14000000000000001,0]
[null,"1.910","ООО \"Агрофирма \"Нива\"  / Малое / Тонкино","1.910 Строительство завода по переработке льна","2015 - 2017",{"$nulls":12},7.6000000000000005,4.0999999999999996,0,null,null,null,1.3,0.65,0]
[null,"1.911","ООО \"Дубрава\"  / Малое / ","1.911  Создание деревообрабатывающего предприятия","2015 - 2017",6,null,0,{"$nulls":6},6,6.04,0,3,1,0,null,null,null,0.36,0.18,0,7,7,0]
[null,"1.912","ИП  Аревшатян Г.В.  / ИП / ","1.912 Производство  и ремонт мебели","2015 - 2017",1.3,null,0,0.3,0.3,0.3,0,null,0,1,1,0,1.5,null,0,null,null,null,0.15,0.8,0,2,2,0]
[null,"2.486.","ООО \"Агрофирма \"Нива\" / Малое / ","2.486. Строительство молочно-товарной фермы на 408 голов","2015 - 2017",8,null,0,{"$nulls":6},8,4,0,{"$nulls":6},0.02,null,0,2,null,0]
[null,"2.487."," ООО \"Агрофирма Нива\" / Малое / Большесодомовский","2.487. Приобретение сельскохозяйственной техники","2015 - 2017",12,null,0,{"$nulls":6},12,1.48,0,1,0.5,0,null,null,null,0.02,0.01,0]
[null,"2.488.","ИП района / ИП / ","2.488. Создание рыбохозяйства","2015 - 2017",2,null,0,{"$nulls":6},2,null,0,{"$nulls":6},0.01,null,0,2,null,0]
[null,"1.913","ИП Ускова Т.В. / ИП / ","1.913 Строительство магазина \"Продукты\"","2015 - 2017",{"$nulls":10},0.85,{"$nulls":4},15,2,0,2.7,0.3,0,25,2,0]
[null,"1.914","Магазин \" Магнит\" / Крупное / ","1.914 Строительство магазина \"Магнит\"","2015 - 2017",13,null,0,{"$nulls":6},13,10.199999999999999,0,null,null,null,13,null,0,2.08,null,0,20,null,0]
[null,"1.915","ООО\"РосСтрой-Сервис\" / ИП / ","1.915 Создание предприятия по ремонту грузового автотранспорта и лесозаготовительной техники","2015 - 2017"]
[null,"1.916","ИП Суворова Т.С. / ИП / Тонкино","1.916 Открытие магазина \"Продукты\"","2015 - 2017",{"$nulls":15},3.5,1.9,0,0.6,0.3,0]
[null,"1.917","Тонкинское райпо   / Среднее / Тонкино","1.917 Открытие магазина \"Строительные материалы\"","2015 - 2017",{"$nulls":15},6.9,3.8,0,1.3,0.71,0]
[null,"1.918","Тонкинское райпо   / Среднее / ","1.918 Открытие магазина  по продаже смешанных товаров","2015 - 2017",1,null,0,{"$nulls":6},1,0.05,0]
[null,"1.919","ИП Зорин / ИП / Тонкино","1.919 Расширение перечня услуг на станции технического обслуживания автомобилей","2015 - 2017",{"$nulls":12},1,0.54,0,null,null,null,0.2,0.1,0,4,4,0]
[null,"1.920","ИП Метелькова  / ИП / ","1.920 Открытие магазина \"Мебель\"","2015 - 2017",{"$nulls":15},4,2.1,0,0.8,0.4,0]
[null,"1.921","ООО \"ТД \"Агрофирма \"Нива\" / Малое / ","1.921 Открытие кафе ","2015 - 2017",{"$nulls":15},3.5,1.9,0,0.6,0.44,0]
[null,"1.922","ИП Бушуев  / ИП / Тонкино","1.922 Открытие станции технического обслуживания автомобилей","2015 - 2017",{"$nulls":12},4,2.1,0,null,null,null,0.70000000000000007,0.35,0]
[null,"1.923","ИП Скворцова М.С. / ИП / ","1.923 Открытие  косметического кабинета","2015 - 2017",{"$nulls":10},1.35,{"$nulls":5},0.03,null,null,0.01,null,null,1]
[null,"4.60","ООО «ДСК Тонкинская»  /  / ","4.60 Реконструкция  и обновление парка строительных  машин и оборудования по ремонту, строительству и содержанию дорог ","2015 - 2017",6,null,0,0.8,0.8,0.8,0,null,0,5.2,5.2,0,45,30.9,0,null,null,null,8,5.5,0,2,3,0]
[{"$nulls":5},{"$f":"J39+O39","v":60.150000000000006},{"$f":"K39+P39","v":37.870000000000005},null,null,{"$f":"J9+J10+J11+J12+J13+J14+J15+J16+J17+J19+J20+J18+J21+J22+J23+J24+J25+J26+J27+J28+J29+J30+J31+J32+J33+J34+J36+J37+J35+J38","v":1.1000000000000001},{"$f":"K9+K10+K11+K12+K13+K14+K15+K16+K17+K19+K20+K18+K21+K22+K23+K24+K25+K26+K27+K28+K29+K30+K31+K32+K33+K34+K36+K37+K35+K38","v":1.1000000000000001},{"$f":"L9+L10+L11+L12+L13+L14+L15+L16+L17+L19+L20+L18+L21+L22+L23+L24+L25+L26+L27+L28+L29+L30+L31+L32+L33+L34+L36+L37+L35+L38","v":0},null,null,{"$f":"O9+O10+O11+O12+O13+O14+O15+O16+O17+O19+O20+O18+O21+O22+O23+O24+O25+O26+O27+O28+O29+O30+O31+O32+O33+O34+O36+O37+O35+O38","v":59.050000000000004},{"$f":"P9+P10+P11+P12+P13+P14+P15+P16+P17+P19+P20+P18+P21+P22+P23+P24+P25+P26+P27+P28+P29+P30+P31+P32+P33+P34+P36+P37+P35+P38","v":36.770000000000003},{"$f":"P39/O39*100","v":62.269263336155802},{"$f":"R9+R10+R11+R12+R13+R14+R15+R16+R17+R19+R20+R18+R21+R22+R23+R24+R25+R26+R27+R28+R29+R30+R31+R32+R33+R34+R36+R37+R35+R38","v":132.09999999999997},{"$f":"S9+S10+S11+S12+S13+S14+S15+S16+S17+S19+S20+S18+S21+S22+S23+S24+S25+S26+S27+S28+S29+S30+S31+S32+S33+S34+S36+S37+S35+S38","v":83.38},{"$f":"S39/R39*100","v":63.118849356548083},{"$f":"U9+U10+U11+U12+U13+U14+U15+U16+U17+U19+U20+U18+U21+U22+U23+U24+U25+U26+U27+U28+U29+U30+U31+U32+U33+U34+U36+U37+U35+U38","v":45.9},{"$f":"V9+V10+V11+V12+V13+V14+V15+V16+V17+V19+V20+V18+V21+V22+V23+V24+V25+V26+V27+V28+V29+V30+V31+V32+V33+V34+V36+V37+V35+V38","v":11.729999999999999},{"$f":"V39/U39*100","v":25.555555555555554},{"$f":"X9+X10+X11+X12+X13+X14+X15+X16+X17+X19+X20+X18+X21+X22+X23+X24+X25+X26+X27+X28+X29+X30+X31+X32+X33+X34+X36+X37+X35+X38","v":30.400000000000006},{"$f":"Y9+Y10+Y11+Y12+Y13+Y14+Y15+Y16+Y17+Y19+Y20+Y18+Y21+Y22+Y23+Y24+Y25+Y26+Y27+Y28+Y29+Y30+Y31+Y32+Y33+Y34+Y36+Y37+Y35+Y38","v":17.149999999999999},{"$f":"Y39/X39*100","v":56.414473684210506},{"$f":"AA9+AA10+AA11+AA12+AA13+AA14+AA15+AA16+AA17+AA19+AA20+AA18+AA21+AA22+AA23+AA24+AA25+AA26+AA27+AA28+AA29+AA30+AA31+AA32+AA33+AA34+AA36+AA37+AA35+AA38","v":87},{"$f":"AB9+AB10+AB11+AB12+AB13+AB14+AB15+AB16+AB17+AB19+AB20+AB18+AB21+AB22+AB23+AB24+AB25+AB26+AB27+AB28+AB29+AB30+AB31+AB32+AB33+AB34+AB36+AB37+AB35+AB38","v":36},{"$f":"AB39/AA39*100","v":41.379310344827587}]